fUSD/lending_fUSD_20260406
["ID","MTS","AMOUNT","RATE_DAILY","PERIOD"]
[419905361,1775495462289,-766.93164,0.00013699,2]
[419905362,1775495462302,-766.931635,0.00013699,2]
[419905363,1775495462313,-280.584218,0.00013699,2]
[419905364,1775495462325,-151.0,0.00013699,2]
[419905365,1775495462336,-280.584224,0.00013699,2]
[419905366,1775495462348,-151.0,0.00013699,2]
[419905367,1775495462360,-151.0,0.00013699,2]
[419905368,1775495462372,-151.0,0.00013699,2]
[419905369,1775495462384,-190.410851,0.00013699,2]
[419905370,1775495462396,-190.410851,0.00013699,2]
[419905371,1775495462408,-658.929163,0.00013699,2]
[419905372,1775495462420,-658.929163,0.00013699,2]
[419905373,1775495462432,-190.410851,0.00013699,2]
[419905374,1775495462444,-190.410851,0.00013699,2]
[419905375,1775495462457,-658.929163,0.00013699,2]
[419905376,1775495462469,-658.929163,0.00013699,2]
[419905377,1775495462481,-190.410851,0.00013699,2]
[419905378,1775495462492,-190.410851,0.00013699,2]
[419905379,1775495462504,-658.929163,0.00013699,2]
[419905380,1775495462516,-658.929163,0.00013699,2]
[419905381,1775495462528,-1519.04079,0.00013699,2]
[419905382,1775495462540,-1519.04079,0.00013699,2]
[419905383,1775495462552,-190.410851,0.00013699,2]
[419905384,1775495462563,-190.410853,0.00013699,2]
[419905385,1775495462575,-658.929163,0.00013699,2]
[419905386,1775495463205,-658.929161,0.00013699,2]
[419905387,1775495463425,-1519.04079,0.00013699,2]
[419905388,1775495463463,-151.0,0.00013699,2]
[419905389,1775495463492,-1519.04079,0.00013699,2]
[419905390,1775495463504,-151.0,0.00013699,2]
[419905391,1775495463514,-1519.04079,0.00013699,2]
[419905392,1775495463524,-310.015346,0.00013699,2]
[419905393,1775495463533,-1519.04079,0.00013699,2]
[419905394,1775495463543,-310.015346,0.00013699,2]
[419905395,1775495463553,-1519.04079,0.00013699,2]
[419905396,1775495463563,-310.015346,0.00013699,2]
[419905397,1775495463572,-1519.040791,0.00013699,2]
[419905398,1775495463582,-310.015346,0.00013699,2]
[419905399,1775495463592,-415.848129,0.00013699,2]
[419905400,1775495463601,-310.015346,0.00013699,2]
[419905401,1775495463611,-310.015346,0.00013699,2]
[419905402,1775495463620,-1202.256682,0.00013699,2]
[419905403,1775495463630,-415.848129,0.00013699,2]
[419905404,1775495463640,-310.015346,0.00013699,2]
[419905405,1775495463652,-310.015343,0.00013699,2]
[419905406,1775495463662,-1202.256682,0.00013699,2]
[419905407,1775495463671,-155.71659,0.00013699,2]
[419905408,1775495463681,-415.848129,0.00013699,2]
[419905409,1775495463690,-1202.256682,0.00013699,2]
[419905410,1775495463701,-520.378138,0.00013699,2]
[419905411,1775495463711,-225.159939,0.00013699,2]
[419905412,1775495463721,-155.71659,0.00013699,2]
[419905413,1775495463731,-415.848121,0.00013699,2]
[419905414,1775495463741,-553.482395,0.00013699,2]
[419905415,1775495463752,-1202.256686,0.00013699,2]
[419905416,1775495463761,-520.378138,0.00013699,2]
[419905417,1775495463771,-225.159939,0.00013699,2]
[419905418,1775495463781,-155.71659,0.00013699,2]
[419905419,1775495463791,-553.482395,0.00013699,2]
[419905420,1775495463801,-225.159939,0.00013699,2]
[419905421,1775495463811,-520.378138,0.00013699,2]
[419905422,1775495463820,-261.551929,0.00013699,2]
[419905423,1775495463830,-2180.552252,0.00013699,2]
[419905424,1775495463840,-553.482395,0.00013699,2]
[419905425,1775495463849,-155.716585,0.00013699,2]
[419905426,1775495463859,-225.159931,0.00013699,2]
[419905427,1775495463868,-520.378138,0.00013699,2]
[419905428,1775495463878,-261.551929,0.00013699,2]
[419905429,1775495463888,-2928.765062,0.00013699,2]
[419905430,1775495463897,-2180.552252,0.00013699,2]
[419905431,1775495463907,-553.482395,0.00013699,2]
[419905432,1775495463916,-2928.765062,0.00013699,2]
[419905433,1775495463926,-261.551929,0.00013699,2]
[419905434,1775495463936,-2180.552252,0.00013699,2]
[419905435,1775495463945,-2928.765062,0.00013699,2]
[419905436,1775495463956,-261.55192,0.00013699,2]
[419905437,1775495463966,-2180.552252,0.00013699,2]
[419905438,1775495463976,-2928.765063,0.00013699,2]
[419905439,1775495463985,-151.0,0.00013699,2]
[419905440,1775495463995,-272.719027,0.00013699,2]
[419905441,1775495464004,-272.719027,0.00013699,2]
[419905442,1775495464014,-272.719027,0.00013699,2]
[419905443,1775495464023,-829.030432,0.00013699,2]
[419905444,1775495464032,-272.719035,0.00013699,2]
[419905445,1775495464042,-276.32838,0.00013699,2]
[419905446,1775495464051,-276.32838,0.00013699,2]
[419905447,1775495464060,-276.32838,0.00013699,2]
[419905448,1775495464070,-151.0,0.00013699,2]
[419905449,1775495464079,-1715.941805,0.00013699,2]
[419905450,1775495464088,-276.328387,0.00013699,2]
[419905451,1775495464098,-1715.941805,0.00013699,2]
[419905452,1775495464107,-617.722164,0.00013699,2]
[419905453,1775495464117,-1715.941805,0.00013699,2]
[419905454,1775495464127,-151.0,0.00013699,2]
[419905455,1775495464137,-617.722164,0.00013699,2]
[419905456,1775495464147,-151.0,0.00013699,2]
[419905457,1775495464157,-1715.941813,0.00013699,2]
[419905458,1775495464167,-402.8195,0.00013699,2]
[419905459,1775495464176,-617.722164,0.00013699,2]
[419905460,1775495464185,-546.258356,0.00013699,2]
[419905461,1775495464195,-151.0,0.00013699,2]
[419905462,1775495464205,-402.8195,0.00013699,2]
[419905463,1775495464215,-151.0,0.00013699,2]
[419905464,1775495464225,-151.0,0.00013699,2]
[419905465,1775495464235,-546.258356,0.00013699,2]
[419905466,1775495464245,-1222.333191,0.00013699,2]
[419905467,1775495464255,-617.72216,0.00013699,2]
[419905468,1775495464264,-402.8195,0.00013699,2]
[419905469,1775495464273,-220.011938,0.00013699,2]
[419905470,1775495464283,-546.258356,0.00013699,2]
[419905471,1775495464292,-1222.333191,0.00013699,2]
[419905472,1775495464301,-151.0,0.00013699,2]
[419905473,1775495464311,-402.819508,0.00013699,2]
[419905474,1775495464320,-3844.31,0.000137,2]
[419905475,1775495464330,-3844.31,0.000137,2]
[419905476,1775495464339,-155.50014246,0.00013705,2]
[419905477,1775495464348,-670.84839751,0.00013724,2]
[419905478,1775495464357,-666.0,0.00013724,2]
[419905479,1775495464367,-5281.0,0.00013738,2]
[419905480,1775495464376,-415.0,0.0001374,2]
[419905481,1775495464385,-532.383,0.0001375,2]
[419905482,1775495464394,-2478.636,0.0001375,2]
[419905483,1775495464403,-6021.0,0.0001375,2]
[419905484,1775495464413,-415.0,0.00013754,2]
[419905485,1775495464422,-168.0,0.00013767,2]
[419905486,1775495464431,-1518.2458569,0.00013769,2]
[419905487,1775495464441,-500.0,0.00013771,2]
[419905488,1775495464450,-500.0,0.00013771,2]
[419905489,1775495464460,-500.0,0.00013771,2]
[419905490,1775495464470,-500.0,0.00013771,2]
[419905491,1775495464479,-3900.0,0.000138,5]
[419905492,1775495464489,-152.0,0.00013824,12]
[419905493,1775495464498,-152.0,0.00013824,3]
[419905494,1775495464508,-10083.37203496,0.00013827,2]
[419905495,1775495464517,-166.66,0.00013836,2]
[419905496,1775495464527,-334.02643621,0.00013859,2]
[419905497,1775495464537,-500.0,0.00013859,2]
[419905498,1775495464546,-666.0,0.00013879,2]
[419905499,1775495464555,-259.532,0.0001388,2]
[419905500,1775495464565,-150.0,0.0001388,2]
[419905501,1775495464575,-150.0,0.0001388,2]
[419905502,1775495464584,-240.284,0.0001388,2]
[419905503,1775495464594,-151.0,0.0001388,2]
[419905504,1775495464604,-622.0,0.0001388,2]
[419905505,1775495464613,-1052.848,0.0001388,2]
[419905506,1775495464623,-1347.0,0.0001388,2]
[419905507,1775495464632,-1263.0,0.0001388,2]
[419905508,1775495464641,-150.679,0.0001388,2]
[419905509,1775495464650,-1221.85,0.0001388,2]
[419905510,1775495464660,-925.0,0.0001388,2]
[419905511,1775495464670,-152.0,0.00013885,2]
[419905512,1775495464681,-190.395318,0.00013887,7]
[419905513,1775495464702,-5200.0,0.000139,5]
[419905514,1775495464712,-800.0,0.000139,5]
[419905515,1775495464722,-350.0,0.00013933,3]
[419905516,1775495464733,-152.0,0.00013936,2]
[419905517,1775495464743,-176.41,0.0001394,2]
[419905518,1775495464753,-500.0,0.00013943,2]
[419905519,1775495464764,-150.0,0.00013973,2]
[419905520,1775495464774,-150.0,0.00013973,2]
[419905521,1775495464785,-150.0,0.00013973,2]
[419905522,1775495464796,-150.0,0.00013973,2]
[419905523,1775495464806,-166.66,0.00013973,2]
[419905524,1775495464816,-985.59,0.00013973,2]
[419905525,1775495464825,-500.0,0.00013981,2]
[419905526,1775495464835,-500.0,0.00013981,2]
[419905527,1775495464844,-300.0,0.00014,2]
[419905528,1775495464855,-855.85192254,0.00014006,2]
[419905529,1775495464865,-500.0,0.00014013,2]
[419905530,1775495464874,-152.0,0.00014016,13]
[419905531,1775495464884,-200.0,0.0001404,2]
[419905532,1775495464895,-1481.23780761,0.0001404,2]
[419905533,1775495464904,-187.78006525,0.0001404,2]
[419905534,1775495464914,-500.0,0.00014042,2]
[419905535,1775495464925,-18855.97246626,0.00014043,2]
[419905536,1775495464935,-5888.0,0.00014056,2]
[419905537,1775495464945,-165.29,0.00014076,2]
[419905538,1775495464956,-1000.0,0.00014095,2]
[419905539,1775495464966,-1000.0,0.00014096,2]
[419905540,1775495464976,-260.80375001,0.00014098,2]
[419905541,1775495464986,-187.2236,0.000141,2]
[419905542,1775495464996,-6140.00081636,0.00014109,2]
[419905543,1775495465006,-166.66,0.0001411,2]
[419905544,1775495465016,-1000.0,0.0001412,2]
[419905545,1775495465026,-4515.85202543,0.00014121,2]
[419905546,1775495465036,-150.0,0.00014129,2]
[419905547,1775495465046,-150.0,0.00014129,2]
[419905548,1775495465056,-150.0,0.00014129,2]
[419905549,1775495465066,-150.0,0.00014129,2]
[419905550,1775495465076,-150.0,0.00014129,2]
[419905551,1775495465085,-150.0,0.00014129,2]
[419905552,1775495465095,-150.0,0.00014129,2]
[419905553,1775495465104,-150.0,0.00014129,2]
[419905554,1775495465115,-150.0,0.00014129,2]
[419905555,1775495465125,-150.0,0.00014129,2]
[419905556,1775495465134,-150.0,0.00014129,2]
[419905557,1775495465144,-150.0,0.00014129,2]
[419905558,1775495465154,-500.0,0.00014132,2]
[419905559,1775495465164,-500.0,0.00014132,2]
[419905560,1775495465174,-500.0,0.00014132,2]
[419905561,1775495465184,-500.0,0.00014133,2]
[419905562,1775495465194,-500.0,0.00014133,2]
[419905563,1775495465211,-500.0,0.00014133,2]
[419905564,1775495465221,-1000.0,0.00014144,2]
[419905565,1775495465232,-364.30599819,0.00014147,2]
[419905566,1775495465242,-150.0,0.00014161,2]
[419905567,1775495465253,-150.0,0.00014176,2]
[419905568,1775495465263,-400.0,0.0001418,2]
[419905569,1775495465275,-400.0,0.0001418,2]
[419905570,1775495465287,-400.0,0.0001418,2]
[419905571,1775495465297,-400.0,0.0001418,2]
[419905572,1775495465308,-400.0,0.0001418,2]
[419905573,1775495465318,-400.0,0.0001418,2]
[419905574,1775495465329,-400.0,0.0001418,2]
[419905575,1775495465339,-400.0,0.0001418,2]
[419905576,1775495465349,-400.0,0.0001418,2]
[419905577,1775495465360,-218.0,0.0001418,2]
[419905578,1775495465371,-150.0,0.00014181,2]
[419905579,1775495465381,-150.0,0.00014185,2]
[419905580,1775495465392,-150.0,0.00014187,2]
[419905581,1775495465403,-150.0,0.00014187,2]
[419905582,1775495465413,-1000.0,0.00014188,2]
[419905583,1775495465424,-150.0,0.00014194,2]
[419905584,1775495465434,-1000.0,0.00014195,2]
[419905585,1775495465444,-1000.0,0.00014199,2]
[419905586,1775495465454,-1000.0,0.00014207,2]
[419905587,1775495465465,-152.0,0.00014209,14]
[419905588,1775495465475,-150.0,0.00014224,2]
[419905589,1775495465485,-150.0,0.00014227,2]
[419905590,1775495465495,-150.0,0.00014233,2]
[419905591,1775495465505,-150.0,0.00014241,2]
[419905592,1775495465515,-150.0,0.00014245,2]
[419905593,1775495465526,-150.0,0.00014245,2]
[419905594,1775495465536,-166.66,0.00014247,2]
[419905595,1775495465547,-150.0,0.00014247,2]
[419905596,1775495465557,-150.0,0.00014247,2]
[419905597,1775495465568,-501.8815996,0.00014247,2]
[419905598,1775495465578,-1038.69136306,0.00014247,2]
[419905599,1775495465588,-1000.0,0.00014247,2]
[419905600,1775495465598,-1000.0,0.00014247,2]
[419905601,1775495465608,-1007.68723107,0.00014247,2]
[419905602,1775495465619,-1000.0,0.00014247,2]
[419905603,1775495465629,-1000.0,0.00014247,2]
[419905604,1775495465639,-1000.0,0.00014247,2]
[419905605,1775495465649,-921.27560565,0.00014247,2]
[419905606,1775495465660,-1000.0,0.00014247,2]
[419905607,1775495465670,-504.42566006,0.00014247,2]
[419905608,1775495465680,-610.42839416,0.00014247,2]
[419905609,1775495465690,-500.0,0.00014247,2]
[419905610,1775495465700,-1000.0,0.00014247,2]
[419905611,1775495465718,-1000.0,0.00014247,2]
[419905612,1775495465728,-1002.59752033,0.00014247,2]
[419905613,1775495465739,-501.68959435,0.00014247,2]
[419905614,1775495465750,-505.26388851,0.00014247,2]
[419905615,1775495465761,-1003.28349871,0.00014247,2]
[419905616,1775495465771,-1000.0,0.00014247,2]
[419905617,1775495465782,-985.59,0.00014247,2]
[419905618,1775495465793,-271.0,0.00014249,2]
[419905619,1775495465803,-150.0,0.0001425,2]
[419905620,1775495465814,-1000.0,0.0001425,2]
[419905621,1775495465824,-227.16914829,0.00014252,2]
[419905622,1775495465835,-150.0,0.0001426,2]
[419905623,1775495465847,-150.0,0.0001426,2]
[419905624,1775495465858,-176.41,0.0001427,2]
[419905625,1775495465868,-150.0,0.00014271,2]
[419905626,1775495465881,-1000.0,0.00014273,2]
[419905627,1775495466311,-150.0,0.00014286,2]
[419905628,1775495466327,-271.0,0.00014286,2]
[419905629,1775495466350,-150.0,0.00014292,2]
[419905630,1775495466364,-150.0,0.00014297,2]
[419905631,1775495466374,-5281.0,0.00014299,2]
[419905632,1775495466384,-150.0,0.00014303,2]
[419905633,1775495466394,-150.0,0.00014303,2]
[419905634,1775495466404,-343.62394219,0.00014317,2]
[419905635,1775495466414,-150.0,0.00014319,2]
[419905636,1775495466424,-150.0,0.00014325,2]
[419905637,1775495466434,-150.0,0.00014325,2]
[419905638,1775495466444,-1000.0,0.00014338,2]
[419905639,1775495466457,-150.0,0.00014338,2]
[419905640,1775495466468,-5281.0,0.0001434,2]
[419905641,1775495466477,-1000.0,0.00014342,2]
[419905642,1775495466487,-10083.37203496,0.00014345,2]
[419905643,1775495466498,-1000.0,0.00014352,2]
[419905644,1775495466508,-150.0,0.00014353,2]
[419905645,1775495466517,-150.0,0.00014358,2]
[419905646,1775495466527,-150.0,0.00014361,2]
[419905647,1775495466538,-150.0,0.00014361,2]
[419905648,1775495466548,-150.0,0.00014367,2]
[419905649,1775495466558,-150.0,0.0001437,2]
[419905650,1775495466567,-2014.31,0.00014384,2]
[419905651,1775495466577,-166.66,0.00014384,2]
[419905652,1775495466587,-150.0,0.0001439,2]
[419905653,1775495466598,-150.0,0.0001439,2]
[419905654,1775495466608,-150.0,0.0001439,2]
[419905655,1775495466617,-186.15865542,0.00014399,2]
[419905656,1775495466627,-2811.0,0.000144,2]
[419905657,1775495466637,-1573.0,0.000144,2]
[419905658,1775495466647,-2081.0,0.000144,2]
[419905659,1775495466657,-1721.0,0.000144,2]
[419905660,1775495466666,-162.0,0.000144,2]
[419905661,1775495466676,-2350.79586093,0.000144,2]
[419905662,1775495466687,-2457.0367896,0.000144,2]
[419905663,1775495466697,-3008.24619321,0.000144,2]
[419905664,1775495466708,-152.0,0.00014402,15]
[419905665,1775495466717,-350.0,0.00014404,2]
[419905666,1775495466727,-350.0,0.00014404,2]
[419905667,1775495466736,-350.0,0.00014404,2]
[419905668,1775495466746,-350.0,0.00014404,2]
[419905669,1775495466756,-350.0,0.00014404,2]
[419905670,1775495466765,-350.0,0.00014404,2]
[419905671,1775495466786,-350.0,0.00014404,2]
[419905672,1775495466797,-350.0,0.00014404,2]
[419905673,1775495466807,-288.0,0.00014404,2]
[419905674,1775495466817,-1000.0,0.00014407,2]
[419905675,1775495466827,-150.0,0.00014409,2]
[419905676,1775495466838,-11353.90414891,0.00014409,2]
[419905677,1775495466849,-150.0,0.00014409,2]
[419905678,1775495466859,-66638.06243498,0.00014409,2]
[419905679,1775495466869,-150.0,0.00014409,2]
[419905680,1775495466879,-7914.28291512,0.00014409,2]
[419905681,1775495466890,-150.0,0.00014409,2]
[419905682,1775495466901,-150.0,0.00014414,2]
[419905683,1775495466912,-150.0,0.00014419,2]
[419905684,1775495466922,-150.0,0.00014419,2]
[419905685,1775495466932,-150.0,0.00014423,2]
[419905686,1775495466941,-5281.0,0.00014426,2]
[419905687,1775495466951,-150.0,0.00014443,2]
[419905688,1775495466962,-150.0,0.00014456,2]
[419905689,1775495466972,-150.0,0.00014462,2]
[419905690,1775495466982,-150.0,0.00014465,2]
[419905691,1775495466993,-150.0,0.00014478,2]
[419905692,1775495467003,-150.0,0.00014478,2]
[419905693,1775495467014,-150.0,0.00014489,2]
[419905694,1775495467023,-150.0,0.00014491,2]
[419905695,1775495467034,-150.0,0.00014495,2]
[419905696,1775495467043,-18855.97246626,0.00014507,2]
[419905697,1775495467053,-1050.0,0.00014509,2]
[419905698,1775495467063,-1050.0,0.00014509,2]
[419905699,1775495467073,-1050.0,0.00014509,2]
[419905700,1775495467083,-1050.0,0.00014509,2]
[419905701,1775495467093,-1050.0,0.00014509,2]
[419905702,1775495467103,-1050.0,0.00014509,2]
[419905703,1775495467113,-1050.0,0.00014509,2]
[419905704,1775495467123,-1050.0,0.00014509,2]
[419905705,1775495467133,-1050.0,0.00014509,2]
[419905706,1775495467144,-579.0,0.00014509,2]
[419905707,1775495467154,-150.0,0.00014509,2]
[419905708,1775495467164,-869.63,0.00014521,2]
[419905709,1775495467174,-150.0,0.00014521,2]
[419905710,1775495467184,-150.0,0.00014521,2]
[419905711,1775495467194,-150.0,0.00014521,2]
[419905712,1775495467207,-150.0,0.00014521,2]
[419905713,1775495467217,-150.0,0.00014536,2]
[419905714,1775495467227,-150.0,0.00014536,2]
[419905715,1775495467237,-150.0,0.00014547,2]
[419905716,1775495467248,-260.80375001,0.00014549,2]
[419905717,1775495467258,-150.0,0.00014554,2]
[419905718,1775495467268,-150.0,0.00014557,2]
[419905719,1775495467278,-5281.0,0.00014567,2]
[419905720,1775495467288,-150.0,0.00014577,2]
[419905721,1775495467298,-150.0,0.00014587,2]
[419905722,1775495467308,-200.0,0.00014588,2]
[419905723,1775495467319,-1536.04360649,0.00014588,2]
[419905724,1775495467328,-194.72792766,0.00014588,2]
[419905725,1775495467339,-1000.0,0.00014593,2]
[419905726,1775495467348,-150.0,0.00014594,2]
[419905727,1775495467359,-150.0,0.00014594,2]
[419905728,1775495467369,-152.0,0.00014594,16]
[419905729,1775495467379,-150.0,0.000146,2]
[419905730,1775495467389,-150.0,0.00014604,2]
[419905731,1775495467399,-150.0,0.00014612,2]
[419905732,1775495467409,-500.0,0.00014612,2]
[419905733,1775495467419,-500.0,0.00014612,2]
[419905734,1775495467429,-816.0,0.00014612,2]
[419905735,1775495467439,-500.0,0.00014612,2]
[419905736,1775495467449,-500.0,0.00014612,2]
[419905737,1775495467459,-500.0,0.00014612,2]
[419905738,1775495467468,-500.0,0.00014612,2]
[419905739,1775495467478,-500.0,0.00014612,2]
[419905740,1775495467488,-500.0,0.00014612,2]
[419905741,1775495467498,-500.0,0.00014612,2]
[419905742,1775495467508,-500.0,0.00014612,2]
[419905743,1775495467517,-500.0,0.00014612,2]
[419905744,1775495467527,-500.0,0.00014612,2]
[419905745,1775495467537,-500.0,0.00014612,2]
[419905746,1775495467547,-500.0,0.00014612,2]
[419905747,1775495467557,-500.0,0.00014612,2]
[419905748,1775495467567,-500.0,0.00014612,2]
[419905749,1775495467576,-500.0,0.00014612,2]
[419905750,1775495467586,-500.0,0.00014612,2]
[419905751,1775495467597,-500.0,0.00014612,2]
[419905752,1775495467607,-500.0,0.00014612,2]
[419905753,1775495467623,-500.0,0.00014612,2]
[419905754,1775495467633,-500.0,0.00014612,2]
[419905755,1775495467644,-500.0,0.00014612,2]
[419905756,1775495467654,-500.0,0.00014612,2]
[419905757,1775495467664,-1000.0,0.00014615,2]
[419905758,1775495467674,-150.0,0.00014619,2]
[419905759,1775495467685,-1000.0,0.00014631,2]
[419905760,1775495467695,-150.0,0.00014633,2]
[419905761,1775495467705,-150.0,0.00014649,2]
[419905762,1775495467715,-150.0,0.00014652,2]
[419905763,1775495467725,-150.0,0.00014652,2]
[419905764,1775495467735,-150.0,0.00014652,2]
[419905765,1775495467746,-150.0,0.00014652,2]
[419905766,1775495467756,-150.0,0.00014652,2]
[419905767,1775495467767,-150.0,0.00014652,2]
[419905768,1775495467777,-736.0,0.00014659,2]
[419905769,1775495467787,-294.02,0.00014666,2]
[419905770,1775495467797,-1000.0,0.00014671,2]
[419905771,1775495467807,-350.0,0.00014679,2]
[419905772,1775495467817,-156.8971398,0.0001468,2]
[419905773,1775495467827,-150.0,0.00014685,2]
[419905774,1775495467844,-150.0,0.00014686,2]
[419905775,1775495467854,-150.0,0.00014689,2]
[419905776,1775495467865,-150.0,0.000147,2]
[419905777,1775495467875,-500.0,0.00014703,2]
[419905778,1775495467885,-150.0,0.00014704,2]
[419905779,1775495467895,-6140.00081636,0.00014706,2]
[419905780,1775495467905,-150.0,0.0001471,2]
[419905781,1775495467915,-150.0,0.0001471,2]
[419905782,1775495467925,-150.0,0.00014717,2]
[419905783,1775495467935,-150.0,0.00014717,2]
[419905784,1775495467945,-163.75,0.00014719,2]
[419905785,1775495467956,-2811.0,0.0001472,2]
[419905786,1775495467970,-2811.0,0.0001472,2]
[419905787,1775495467980,-162.0,0.0001472,2]
[419905788,1775495467990,-2811.0,0.0001472,2]
[419905789,1775495468001,-162.0,0.0001472,2]
[419905790,1775495468011,-1573.0,0.0001472,2]
[419905791,1775495468022,-250.33567312,0.00014724,2]
[419905792,1775495468032,-150.0,0.00014733,2]
[419905793,1775495468042,-150.0,0.00014745,2]
[419905794,1775495468051,-150.0,0.00014747,2]
[419905795,1775495468061,-350.0,0.00014749,2]
[419905796,1775495468071,-258.45369648,0.0001475,2]
[419905797,1775495468081,-2402.5798236,0.0001475,2]
[419905798,1775495468092,-5818.33073564,0.0001475,2]
[419905799,1775495468103,-150.0,0.0001475,2]
[419905800,1775495468114,-150.0,0.00014757,2]
[419905801,1775495468124,-1000.0,0.0001476,2]
[419905802,1775495468133,-150.0,0.00014768,2]
[419905803,1775495468143,-150.0,0.00014768,2]
[419905804,1775495468153,-1000.0,0.00014778,2]
[419905805,1775495468163,-150.0,0.00014783,2]
[419905806,1775495468173,-150.0,0.00014783,2]
[419905807,1775495468183,-152.0,0.00014787,17]
[419905808,1775495468194,-1500.0,0.00014795,2]
[419905809,1775495468204,-500.0,0.00014795,2]
[419905810,1775495468215,-967.27624458,0.00014795,2]
[419905811,1775495468225,-1500.0,0.00014795,2]
[419905812,1775495468235,-250.0,0.00014795,2]
[419905813,1775495468246,-178.69264961,0.00014795,2]
[419905814,1775495468255,-1500.0,0.00014795,2]
[419905815,1775495468265,-1500.0,0.00014795,2]
[419905816,1775495468275,-1500.0,0.00014795,2]
[419905817,1775495468285,-150.0,0.00014795,2]
[419905818,1775495468295,-150.0,0.00014802,2]
[419905819,1775495468306,-150.0,0.00014807,2]
[419905820,1775495468316,-150.0,0.00014809,2]
[419905821,1775495468326,-150.0,0.00014816,2]
[419905822,1775495468336,-200.0,0.00014819,2]
[419905823,1775495468346,-150.0,0.00014826,2]
[419905824,1775495468356,-150.0,0.00014826,2]
[419905825,1775495468366,-500.0,0.00014839,2]
[419905826,1775495468376,-500.0,0.00014839,2]
[419905827,1775495468386,-500.0,0.00014839,2]
[419905828,1775495468396,-500.0,0.00014839,2]
[419905829,1775495468407,-500.0,0.00014839,2]
[419905830,1775495468416,-500.0,0.00014839,2]
[419905831,1775495468426,-500.0,0.00014839,2]
[419905832,1775495468436,-500.0,0.00014839,2]
[419905833,1775495468447,-500.0,0.00014839,2]
[419905834,1775495468457,-500.0,0.00014839,2]
[419905835,1775495468467,-500.0,0.00014839,2]
[419905836,1775495468477,-500.0,0.00014839,2]
[419905837,1775495468487,-500.0,0.00014839,2]
[419905838,1775495468498,-500.0,0.00014839,2]
[419905839,1775495468508,-500.0,0.00014839,2]
[419905840,1775495468518,-500.0,0.00014839,2]
[419905841,1775495468528,-500.0,0.00014839,2]
[419905842,1775495468538,-500.0,0.00014839,2]
[419905843,1775495468548,-500.0,0.00014839,2]
[419905844,1775495468558,-500.0,0.00014839,2]
[419905845,1775495468568,-500.0,0.00014839,2]
[419905846,1775495468578,-500.0,0.00014839,2]
[419905847,1775495468588,-500.0,0.00014839,2]
[419905848,1775495468598,-500.0,0.00014839,2]
[419905849,1775495468608,-500.0,0.00014839,2]
[419905850,1775495468618,-500.0,0.00014839,2]
[419905851,1775495468628,-500.0,0.00014839,2]
[419905852,1775495468638,-500.0,0.00014839,2]
[419905853,1775495468648,-500.0,0.00014839,2]
[419905854,1775495468658,-500.0,0.00014839,2]
[419905855,1775495468668,-674.0,0.00014839,2]
[419905856,1775495468678,-150.0,0.00014842,2]
[419905857,1775495468688,-150.0,0.00014848,2]
[419905858,1775495468697,-1000.0,0.00014852,2]
[419905859,1775495468707,-200.19532377,0.00014853,2]
[419905860,1775495468717,-150.0,0.00014853,2]